Cogmind - Beta 16 @@@ ROGUE MODE // 2025.12.04 @ 20:40:16 Player: Derk Result: Destroyed self with Grenade Launcher Performance ------------- Evolutions (0) 0 Regions Visited (2) 400 Robots Destroyed (40) 200 Value Destroyed (1070) 1070 Prototype IDs (14) 280 Alien Tech Used (0) 0 Bonus (0) 0 TOTAL SCORE: 1950 Bonus ------- None Cogmind --------- Core Integrity 0/250 Matter 249/300 Energy 199/200 System Corruption 1% Temperature Cool (0) Movement Rolling (345) Ox17 Location -10/Subcaves Parts ------- > --- POWER (1) -------- Subdweller Power Source > --- PROPULSION (2) --- Armored Wheel > --- UTILITY (2) ------ Humpback > --- WEAPON (2) ------- Heavy Assault Rifle Grenade Launcher > --- INVENTORY (35) --- Subdweller Power Source Subdweller Power Source Light Treads Spiked Treads Makeshift Leg Armored Wheel Armored Wheel Disposable Heat Sink Large Storage Unit High-capacity Matter Pod (182) Subdweller Optics Seismic Detector Makeshift Light Armor Plating Makeshift Hacking Suite Powered Cannon Heavy Assault Rifle Heavy Assault Rifle Battle Rifle Battle Rifle Subdweller Machine Gun Mini Grenade Launcher Mining Laser Multitool Makeshift Axe Shrapnel Trap Piercing Trap Piercing Trap Peak State ------------ > --- POWER ------------ Subdweller Power Source > --- PROPULSION ------- Armored Wheel Armored Wheel > --- UTILITY ---------- Humpback > --- WEAPON ----------- Heavy Assault Rifle Makeshift Axe > --- INVENTORY -------- Subdweller Power Source Subdweller Power Source Light Treads Spiked Treads Makeshift Leg Armored Wheel Armored Wheel Disposable Heat Sink Large Storage Unit High-capacity Matter Pod Subdweller Optics Seismic Detector Makeshift Light Armor Plating Makeshift Hacking Suite Powered Cannon Heavy Assault Rifle Heavy Assault Rifle Battle Rifle Battle Rifle Subdweller Machine Gun Grenade Launcher Mini Grenade Launcher Mining Laser Multitool Shrapnel Trap Piercing Trap Piercing Trap [Rating: 20] Favorites ----------- Power Light Ion Engine Engine Light Ion Engine Propulsion Armored Wheel Treads Light Treads Wheel Armored Wheel Utility Seismic Detector Device Seismic Detector Storage Humpback Protection Makeshift Light Armor Plating Weapon Heavy Assault Rifle Energy Gun Riot Gun Ballistic Gun Heavy Assault Rifle Launcher Grenade Launcher Special Weapon Mining Laser Slashing Weapon Makeshift Axe Build | -11 -10 -10 ------- Run | Yrd Mat Sub Slots Evolved . | . . . Power . | . . . Propulsion . | . . . Utility . | . . . Weapon . | . . . Parts Attached 29 | 7 9 13 Power 4 | 1 1 2 Engine 4 | 1 1 2 Core . | . . . Reactor . | . . . Propulsion 6 | 2 2 2 Treads 3 | 2 1 . Leg . | . . . Wheel 3 | . 1 2 Hover . | . . . Flight . | . . . Utility 6 | 2 1 3 Device 1 | 1 . . Storage 3 | 1 1 1 Processor . | . . . Hackware . | . . . Protection 2 | . . 2 Artifact . | . . . Weapon 13 | 2 5 6 Energy Gun 4 | 2 1 1 Energy Cannon . | . . . Ballistic Gun 4 | . 2 2 Ballistic Cannon . | . . . Launcher 2 | . 1 1 Special Weapon 2 | . 1 1 Impact Weapon . | . . . Slashing Weapon 1 | . . 1 Piercing Weapon . | . . . Special Melee Weapon . | . . . Unidentified Prototypes . | . . . Parts Lost 4 | . . 4 Power 1 | . . 1 Propulsion 1 | . . 1 Utility 1 | . . 1 Weapon 1 | . . 1 Highest Loss Streak 3 | . . 3 To Critical Strikes . | . . . Average Backups 14 | 3 9 18 Power . | . . . Propulsion 3 | 1 3 4 Utility 4 | . 1 5 Weapon 5 | 1 4 6 Tool/Special . | . . . Unused Backups 25 | . 6 19 Power 3 | . 1 2 Propulsion 6 | . 2 4 Utility 7 | . 1 6 Weapon 8 | . 2 6 Tool/Special 1 | . . 1 Average Slot Usage (%) 93 | . 99 90 Engine 13 | . 14 13 Treads 10 | . 18 5 Wheel 17 | . 9 22 Device 7 | . 14 4 Storage 14 | . 14 14 Energy Gun 4 | . 5 3 Ballistic Gun 17 | . 20 15 Launcher 2 | . . 3 Special Weapon 1 | . 1 2 Slashing Weapon 2 | . . 3 Peak Build Rating 20 | 7 12 20 Average Rating 14 | 5 10 16 On Entrance 6 | . 7 12 Avg Prop Armor Cover (%) 10 | . 10 11 Naked Turns . | . . . Heaviest Build 211 | 12 30 211 Greatest Support 40 | 40 40 24 Greatest Overweight (x) 8 | . 2 8 Average Overweight (x) 3 | . 1 5 Largest Inventory Capacity 35 | 8 15 35 Average Capacity 21 | 7 11 27 Most Carried 28 | 6 15 28 Average Carried 16 | 4 9 20 Final Capacity 35 | 8 15 35 Final Carried 28 | 6 15 28 Class Distribution -------------------- 59% | Mutant 40% | Hauler-Mutant Dominant Class ---------------- Mutant | -10/Materials Hauler-Mutant | -10/Subcaves Resources | -11 -10 -10 ----------- Run | Yrd Mat Sub Matter Collected 1568 | 270 387 911 Remotely . | . . . Salvage Created 1134 | 75 616 443 Parts 89 | 11 43 35 Haulers Intercepted 1 | . 1 . Recyclers Shooed 1 | . 1 . Parts Field Recycled . | . . . Retrieved Matter . | . . . Parts Self-Destructed 5 | . . 5 Prevented 1 | . . 1 Parts Restored . | . . . Kills | -11 -10 -10 ------- Run | Yrd Mat Sub Combat Hostiles Destroyed 32 | . 15 17 Guns 18 | . 13 5 AOE 14 | . 2 12 Classes Destroyed 8 | 1 6 1 Builder 1 | . 1 . Tunneler 4 | 4 . . Hauler 1 | . 1 . Recycler 1 | . 1 . Watcher 1 | . 1 . Swarmer 8 | . 6 2 Grunt 11 | . 9 2 Subdweller 13 | . . 13 Best Kill Streak 6 | 3 4 6 Combat Bots Only 6 | . 3 6 Max Kills in Single Turn 2 | 1 2 2 Gunslinging . | . . . Exploded 2 | . 2 2 Melee . | . . . Uniques/NPCs Destroyed . | . . . Combat | -11 -10 -10 -------- Run | Yrd Mat Sub Hostile Shots Fired 127 | . 59 68 Missed 48 | . 22 26 Hits 79 | . 37 42 Projectile 79 | . 37 42 Critical Strikes 2 | . 1 1 Damage Taken 1265 | . 366 899 Core 264 | . 71 193 Absorbed by Shields . | . . . Regen/Repaired (Parts) 59 | . 59 . Core Remaining (%) 100 | 100 . . Volleys Fired 125 | 5 58 62 Largest 2 | 2 2 2 Hottest 100 | 80 100 100 Shots Fired 215 | 10 106 99 Gun 159 | 10 98 51 Cannon . | . . . Launcher 34 | . 1 33 Special 22 | . 7 15 Kinetic 125 | . 84 41 Thermal 33 | 5 13 15 Explosive 34 | . 1 33 Electromagnetic 23 | 5 8 10 Robot Hit Streak 10 | 3 7 10 Robot Miss Streak 9 | 1 9 3 Penetration Max . | . . . Secondary Targets 2 | . 1 1 Max Gunslinging Chain 1 | . 1 1 Shots Hit Robots 107 | 6 50 51 Core Hits 67 | 4 26 37 Critical Kills . | . . . Critical Parts Destroyed 1 | . 1 . Critical Strikes 1 | . 1 . Destroy 1 | . 1 . Melee Attacks 17 | . . 17 Impact . | . . . Slashing 17 | . . 17 Piercing . | . . . Sneak Attacks . | . . . Combat Hostiles . | . . . Follow-up Attacks . | . . . Damage Inflicted 3055 | 75 956 2024 Guns 1432 | 75 834 523 Cannons . | . . . Explosions 1620 | . 119 1501 Melee . | . . . Ramming 3 | . 3 . Kinetic 1141 | . 751 390 Thermal 138 | 47 38 53 Explosive 1567 | . 119 1448 Electromagnetic 206 | 28 45 133 Impact . | . . . Slashing . | . . . Piercing . | . . . Highest Corruption 1 | . 1 1 Average Corruption 1 | . 1 1 Corruption Purged . | . . . Corruption Blocked . | . . . Effects 18 | . 4 14 Message Errors 9 | . 1 8 Matter Fused 2 | . . 2 Heat Flow Errors 2 | . 1 1 Energy Discharges 2 | . 2 . Data Loss (minor) 3 | . . 3 Overload Shots . | . . . Overflow Damage 56 | . 10 46 Projectiles . | . . . Explosions 56 | . 10 46 Melee . | . . . Knockbacks . | . . . Impact . | . . . Kinetic . | . . . Secondary . | . . . Self-Inflicted Damage 126 | . . 126 Shots 4 | . . 4 Rammed 1 | . 1 . Targets Rammed 1 | . 1 . Kicked . | . . . Crushed . | . . . Highest Temperature 234 | 36 174 234 Average Temperature 54 | 15 50 132 Received Heat Transfer 517 | . 147 370 Siege Activations . | . . . Martial Activations . | . . . Shielding Activations . | . . . Robots Disrupted . | . . . Combat Hostiles . | . . . Robots Corrupted . | . . . Combat Hostiles . | . . . Parts Fried . | . . . Impact Corruptions . | . . . Robots Melted . | . . . Combat Hostiles . | . . . Parts Melted 1 | . 1 . Heat Transferred 261 | 100 111 50 Parts Sabotaged . | . . . Parts Stolen . | . . . Parts Stripped . | . . . Power Chain Reactions 1 | . . 1 Alert | -11 -10 -10 ------- Run | Yrd Mat Sub Maximum Alert Level . | . . . Low Security (%) 100 | 100 100 . Level 1 . | . . . Level 2 . | . . . Level 3 . | . . . Level 4 . | . . . Level 5 . | . . . High Security . | . . . Max Security . | . . . Peak Influence 76 | 5 76 . Initial . | . . . Average 26 | 1 28 . Influence Increases 626 | 20 441 165 Destroy 0b10 Robot/C 380 | . 300 80 Destroy 0b10 Robot/NC 40 | 20 20 . Destroy Leader 74 | . 64 10 Successful Hack 31 | . 31 . Destroy Structure 11 | . 11 . Lose Combat Pursuer 90 | . 15 75 Influence Decreases 551 | 20 441 90 Time Decay 541 | 20 441 80 Lost Part 10 | . . 10 Squads Dispatched 3 | . 3 . Investigation 3 | . 3 . Extermination . | . . . Reinforcement . | . . . Assault . | . . . Garrison . | . . . Intercept . | . . . Searches Triggered . | . . . Construction Impeded . | . . . Haulers Reinforced . | . . . Active Scanning Responses . | . . . Cargo Convoy Interrupts . | . . . Stealth | -11 -10 -10 --------- Run | Yrd Mat Sub Distress Signals 3 | . 3 . Communications Jammed . | . . . Distress Signals . | . . . Times Spotted 54 | . 33 21 Peak Tracking Total 6 | . 6 4 Tactical Retreats 3 | . 1 2 Traps | -11 -10 -10 ------- Run | Yrd Mat Sub Traps Triggered 4 | . 4 . Indirectly . | . . . Trap Hack Attempts . | . . . Triggered . | . . . Disarmed . | . . . Reprogrammed . | . . . Reused . | . . . Traps Extracted . | . . . Installed . | . . . Triggered . | . . . Most Traps Carried 3 | . . 3 Machines | -11 -10 -10 ---------- Run | Yrd Mat Sub Machines Disabled 2 | . . 2 Max in Single Turn 1 | . . 1 Machines Repaired . | . . . Machines Dismantled . | . . . Machines Sabotaged . | . . . Overloaded Fab Kills . | . . . Hacking | -11 -10 -10 --------- Run | Yrd Mat Sub Machines Accessed 11 | . 9 2 Terminals 8 | . 8 . Fabricators . | . . . Repair Stations 1 | . 1 . Recycling Units . | . . . Scanalyzers . | . . . Garrison Access . | . . . Total Hacks 40 | . 35 5 Successful 21 | . 16 5 Failed 18 | . 18 . Catastrophic 1 | . 1 . Database Lockouts 1 | . 1 . Manual 19 | . 19 . Terminals 30 | . 30 . Fabricators . | . . . Repair Stations 5 | . 5 . Recycling Units . | . . . Scanalyzers . | . . . Garrison Access . | . . . Terminal Hacks 13 | . 8 5 Record 4 | . . 4 Robot Analysis 1 | . 1 . Prototype ID Bank 1 | . 1 . Branch Access Points 1 | . 1 . Locate Traps 2 | . 2 . Hauler Manifests 2 | . 2 . Zone Layout 1 | . 1 . Proto ID Catalog 1 | . . 1 Fabricator Hacks . | . . . Repair Station Hacks 2 | . 2 . Scan Component 1 | . 1 . Repair 1 | . 1 . Recycling Unit Hacks . | . . . Scanalyzer . | . . . Garrison Access Hacks . | . . . Unauthorized Hacks 6 | . 6 . Terminals 6 | . 6 . Botnet 1 | . 1 . Skim 5 | . 5 . Fabricators . | . . . Repair Stations . | . . . Recycling Units . | . . . Scanalyzers . | . . . Garrison Access . | . . . Data Cores Recovered . | . . . Used . | . . . Hacking Detections 7 | . 7 . Full Trace Events . | . . . Feedback Events . | . . . Feedback Blocked . | . . . Robot Schematics Acquired . | . . . Robots Built . | . . . Authchips . | . . . Time . | . . . Total Robot Build Rating . | . . . Part Schematics Acquired . | . . . Parts Built . | . . . Authchips . | . . . Time . | . . . Total Part Build Rating . | . . . Part Studies Acquired . | . . . Parts Repaired 1 | . 1 . Time 32 | . 32 . Parts Recycled . | . . . Recycled Matter . | . . . Retrieved Matter . | . . . Retrieved Components . | . . . Parts Scanalyzed . | . . . Part Schematics Acquired . | . . . Parts Damaged . | . . . Bothacking | -11 -10 -10 ------------ Run | Yrd Mat Sub Used RIF Installer . | . . . Robots Hacked . | . . . Non-combat . | . . . Combat . | . . . Robot Hacks Applied . | . . . Relay Couplers Released . | . . . Fabnet Peak Effective % . | . . . Robots Rewired . | . . . Allies Hacked . | . . . Hacks Repelled . | . . . Allies | -11 -10 -10 -------- Run | Yrd Mat Sub Total Allies . | . . . Largest Group . | . . . Highest-Rated Group . | . . . Highest-Rated Ally . | . . . Total Orders . | . . . Ally Attacks . | . . . Total Damage . | . . . Kills . | . . . Allies Corrupted . | . . . Allies Melted . | . . . Intel | -11 -10 -10 ------- Run | Yrd Mat Sub Active Infowar (turns) 2446 | 19 1578 849 Seismic 2446 | 19 1578 849 Robot Analysis Total 1 | . 1 . Derelict Logs Recovered 1 | . . 1 Drone Launches . | . . . Drone Recoveries . | . . . Exploration | -11 -10 -10 ------------- Run | Yrd Mat Sub Turns Passed 4559 | 128 1578 2853 Spaces Moved 2422 | 62 914 1446 Core 2 | 2 . . Treads 372 | 60 304 8 Legs . | . . . Wheels 2048 | . 610 1438 Hover . | . . . Flight . | . . . Fastest Speed 50 | 50 105 90 Average Speed 157 | 156 135 170 Slowest Speed 240 | 160 240 240 Overloaded Moves . | . . . Propulsion Burnouts . | . . . Robots Hopped . | . . . Potential Cave-ins . | . . . Cave-ins Triggered . | . . . Exploration Rate (%) 54 | 5 99 58 Regions Visited 2 Branch Regions 1 Pre-discovered Areas 3 | . 2 1 Known Exits Taken 1 | . 1 . Unknown Exits Taken 1 | 1 . . Scrap Searched 5 | . . 5 Spaces Dug 24 | . 7 17 Terrain Destroyed 211 | . 11 200 Melee 8 | . . 8 Projectile 7 | . 7 . AOE 196 | . 4 192 Terrain Rammed . | . . . Walls Destroyed . | . . . Machines Disabled . | . . . Actions | -11 -10 -10 --------- Run | Yrd Mat Sub Total 2898 | 80 1133 1685 Wait 217 | . 120 97 Move 2420 | 61 913 1446 Hop . | . . . Pick Up 55 | 7 17 31 Fast Attach 11 | 6 3 2 Attach 4 | 1 . 3 Detach . | . . . Swap 23 | . 8 15 Drop 25 | . 13 12 Fire 125 | 5 58 62 Melee 17 | . . 17 Ram . | . . . Kick . | . . . Crush 1 | . 1 . Escape Stasis . | . . . Rewire . | . . . Trap . | . . . Miscellaneous . | . . . Route ------- -11/Scrapyard -10/Materials (discovered 6 exits: *Mat x3 / *Min x2 / *Sub) -10/Subcaves (discovered 1 exit: [*Mat]) History --------- Turn | Location | Event 16 | -11/Scrapyard | Discovered new exit (range 15) 129 | -11/Scrapyard | Entered Materials 313 | -10/Materials | Build established: Mutant 657 | -10/Materials | Discovered new exit (range 8) 670 | -10/Materials | Identified exit to Mines 863 | -10/Materials | Discovered new exit (range 16) 1092 | -10/Materials | Discovered new exit (range 14) 1235 | -10/Materials | Learned location of 2 exits from Mines 1268 | -10/Materials | Learned Storage garrison access intel 1291 | -10/Materials | Learned location of Mines (-9) 1303 | -10/Materials | Learned 4 Recycling zone layouts 1305 | -10/Materials | Learned location of Subcaves (-10) 1306 | -10/Materials | Identified exit to Subcaves 1307 | -10/Materials | Learned 4 Subcaves zone layouts 1308 | -10/Materials | Identified exit to Materials 1312 | -10/Materials | Learned Storage security intel 1327 | -10/Materials | Learned Storage stockpile data 1647 | -10/Materials | Repaired Hvy. Assault Rifle? 1654 | -10/Materials | Central database locked down 1707 | -10/Materials | Entered Subcaves 1792 | -10/Subcaves | Visited 4L-MR0's lab 1810 | -10/Subcaves | Found Powered Cannon 1897 | -10/Subcaves | Visited Clippyterm 1901 | -10/Subcaves | Learned Factory trap positions 1901 | -10/Subcaves | Learned Research security intel 1992 | -10/Subcaves | Discovered new exit (range 13) 2216 | -10/Subcaves | Ambushed by Subdweller buried in earth 2218 | -10/Subcaves | Ambushed by Subdweller buried in earth 2434 | -10/Subcaves | Ambushed by Subdweller buried in earth 2574 | -10/Subcaves | Ambushed by Subdweller buried in earth 2574 | -10/Subcaves | Ambushed by Subdweller buried in earth 2574 | -10/Subcaves | Ambushed by Subdweller buried in earth 2600 | -10/Subcaves | Core integrity fell below 50% 2622 | -10/Subcaves | Lost 3 parts (1p1u1w) 2729 | -10/Subcaves | Shifting Twisted Machinery released Humpback 2733 | -10/Subcaves | Shifting Twisted Machinery released Piercing Trap 2934 | -10/Subcaves | Curiously followed by a Cobbler waking with a query about "LVR3C" 3034 | -10/Subcaves | Build established: Hauler-Mutant 3223 | -10/Subcaves | Shifting Twisted Machinery released Battle Rifle 3242 | -10/Subcaves | Shifting Twisted Machinery released Spk. Treads 3326 | -10/Subcaves | Shifting Twisted Machinery released Battle Rifle 3328 | -10/Subcaves | Shifting Twisted Machinery released Sub. Power Source 3694 | -10/Subcaves | Core integrity fell below 20% 4560 | -10/Subcaves | Destroyed self with Grenade Launcher Last Messages --------------- 03716_ The unstable cave ceiling collapses. 03723_ Acquired 33 matter. 03732_ Acquired Sub. Optics. 03733_ Acquired 28 matter. 03737_ Acquired Sub. Power Source. 03740_ Acquired Sub. Machine Gun. 03742_ The unstable cave ceiling collapses. 03768_ System corrupted: Component data lost. 03865_ The unstable cave ceiling collapses. 03974_ D%D>YX |YBPK|XKK<1 WIN9P4PO 01I=HSFMOUSX 04340_ System corrupted: Matter fused (-5). 04414_